Cogmind - Beta 10.2 --- EXPLORER MODE // 2022.01.16 @ 11:20:12 Player: xerxia Result: Escaped! Performance ------------- Evolutions (9) 4500 Regions Visited (14) 2800 Robots Destroyed (27) 135 Value Destroyed (775) 775 Prototype IDs (18) 360 Alien Tech Used (0) 0 Bonus (14868) 14868 TOTAL SCORE: 23438 Bonus ------- Pacifist 200 High Alert Combat Kills 32 Met Warlord at Base 500 MAIN.C Attacked Warlord 500 Met Warlord at Research 2000 Win 3000 Win Speed 8636 Cogmind --------- Core Integrity 1527/1600 Matter 203/300 Energy 1173/1180 System Corruption 0% Temperature Cool (7) Movement Flying (22) Location To Epsilon Eridani Parts ------- > --- POWER (3) -------- Particle Reactor Quantum Reactor Light Quantum Reactor > --- PROPULSION (10) -- Field Propulsion Drive Impulse Thruster Impulse Thruster Impulse Thruster Impulse Thruster Impulse Thruster Array Impulse Thruster Array > --- UTILITY (9) ------ Power Amplifier Coolant Network Coolant Injector Medium Storage Unit High-capacity Storage Unit Energy Well Advanced Weight Redist. System Advanced Weight Redist. System > --- WEAPON (4) ------- Vortex Rail Compact Ion Cannon > --- INVENTORY (16) --- Quantum Reactor Light Quantum Reactor Field Propulsion Drive Nuclear Pulse Array Q-thruster Power Amplifier Medium Storage Unit Advanced Weight Redist. System Advanced Weight Redist. System Heavy Shock Bomb Launcher Vortex Catalyst Activator Peak State ------------ > --- POWER ------------ Particle Reactor Quantum Reactor Light Quantum Reactor > --- PROPULSION ------- Field Propulsion Drive Field Propulsion Drive Impulse Thruster Impulse Thruster Impulse Thruster Impulse Thruster Impulse Thruster Array Impulse Thruster Array > --- UTILITY ---------- Power Amplifier Coolant Network Coolant Injector Medium Storage Unit High-capacity Storage Unit Energy Well Advanced Weight Redist. System Advanced Weight Redist. System > --- WEAPON ----------- Vortex Rail Compact Ion Cannon > --- INVENTORY -------- Quantum Reactor Light Quantum Reactor Field Propulsion Drive Nuclear Pulse Array Q-thruster Power Amplifier Medium Storage Unit Advanced Weight Redist. System Advanced Weight Redist. System Heavy Shock Bomb Launcher Vortex Catalyst Activator [Rating: 161] Favorites ----------- Power Light Deuterium Engine Engine Light Deuterium Engine Power Core Light Fission Core Reactor Particle Reactor Propulsion Cesium-ion Thruster Leg Aluminum Leg Flight Unit Cesium-ion Thruster Utility Medium Storage Unit Device Coolant Injector Storage Medium Storage Unit Protection Light Armor Plating Weapon Heavy Hammer Energy Gun Improved EM Shotgun Energy Cannon Compact Ion Cannon Ballistic Gun Assault Rifle Launcher Vortex Catalyst Activator Impact Weapon Heavy Hammer Build | -11 -10 -9 -8 -7 -6 -5 -5 -5 -5 -4 -4 -3 -2 -1 ------- Run | Scr Mat Mat Mat Fac Fac Fac Upp Upp War Pro Fac Res Res Acc Slots Evolved 19 | . 1 2 2 2 2 2 . . . . 2 2 2 2 Power 2 | . 1 . . . . 1 . . . . . . . . Propulsion 8 | . . 2 2 1 1 . . . . . . 1 1 . Utility 7 | . . . . 1 1 1 . . . . 1 1 1 1 Weapon 2 | . . . . . . . . . . . 1 . . 1 Parts Attached 95 | 6 3 11 8 9 9 2 2 . 7 2 10 9 11 6 Power 17 | 1 . 2 2 . 2 1 1 . . . 2 2 3 1 Engine 7 | 1 . 1 1 . 1 1 1 . . . 1 . . . Core 6 | . . 1 1 . 1 . . . . . 1 1 1 . Reactor 4 | . . . . . . . . . . . . 1 2 1 Propulsion 36 | 2 . 6 5 4 4 . 1 . . 1 3 2 4 4 Treads . | . . . . . . . . . . . . . . . Leg 4 | 2 . 2 . . . . . . . . . . . . Wheel . | . . . . . . . . . . . . . . . Hover . | . . . . . . . . . . . . . . . Flight 32 | . . 4 5 4 4 . 1 . . 1 3 2 4 4 Utility 26 | 2 1 1 1 3 2 1 . . 4 1 4 3 2 1 Device 13 | . . . . 1 . 1 . . 4 1 1 2 2 1 Storage 12 | 1 1 1 1 2 2 . . . . . 3 1 . . Processor . | . . . . . . . . . . . . . . . Hackware . | . . . . . . . . . . . . . . . Protection 1 | 1 . . . . . . . . . . . . . . Artifact . | . . . . . . . . . . . . . . . Weapon 16 | 1 2 2 . 2 1 . . . 3 . 1 2 2 . Energy Gun 7 | . 1 2 . 1 . . . . 1 . . 1 1 . Energy Cannon 2 | . . . . . 1 . . . . . . . 1 . Ballistic Gun 1 | 1 . . . . . . . . . . . . . . Ballistic Cannon . | . . . . . . . . . . . . . . . Launcher 1 | . . . . . . . . . 1 . . . . . Special Weapon . | . . . . . . . . . . . . . . . Impact Weapon 5 | . 1 . . 1 . . . . 1 . 1 1 . . Slashing Weapon . | . . . . . . . . . . . . . . . Piercing Weapon . | . . . . . . . . . . . . . . . Special Melee Weapon . | . . . . . . . . . . . . . . . Unidentified Prototypes 9 | . . 1 1 . 1 . . . 3 . . 1 1 1 Parts Lost 24 | . . . 2 1 4 . 2 1 . 4 . 3 5 2 Power 3 | . . . . . . . 1 1 . 1 . . . . Propulsion 18 | . . . 2 1 3 . 1 . . 3 . 2 4 2 Utility 1 | . . . . . . . . . . . . 1 . . Weapon 2 | . . . . . 1 . . . . . . . 1 . Highest Loss Streak 4 | . . . 1 1 4 . 2 3 . 2 . 3 4 2 Average Slot Usage (%) 86 | . 77 93 83 99 98 100 100 94 90 78 80 78 75 73 Engine 6 | . 12 10 7 7 6 11 11 5 5 2 5 4 . . Core 5 | . . 4 8 7 6 5 5 5 5 5 8 7 7 . Leg 10 | . 25 31 1 . . . . . . . . . . . Flight 27 | . . 7 46 50 49 44 44 44 44 37 33 32 28 25 Device 7 | . . . . 7 6 11 11 11 11 11 15 14 15 17 Storage 15 | . 12 20 16 14 18 16 16 16 16 16 13 13 12 11 Energy Gun 6 | . 8 17 3 7 5 . . . . . . . 1 3 Energy Cannon 1 | . . . . . . 5 5 5 2 . . . 1 3 Impact Weapon 3 | . 6 2 . 6 6 5 5 5 5 5 5 4 3 . Naked Turns . | . . . . . . . . . . . . . . . Heaviest Build 115 | 18 27 58 28 35 41 47 47 47 47 38 57 81 105 115 Greatest Support 130 | 20 20 43 29 40 47 47 50 50 50 50 68 87 115 130 Greatest Overweight (x) 4 | 4 1 2 1 . . . . . . . 1 . 1 . Average Overweight (x) . | 1 . 1 . . . . . . . . . . . . Largest Inventory Capacity 16 | 8 12 16 16 12 12 12 12 12 12 12 12 16 16 16 Average Capacity 12 | 7 8 14 12 9 12 12 12 12 12 12 10 15 16 16 Most Carried 16 | 5 8 16 15 12 12 6 5 3 9 9 12 12 16 16 Average Carried 9 | 2 6 12 11 9 10 4 4 3 5 8 9 9 12 13 Final Capacity 16 | 8 12 16 12 12 12 12 12 12 12 12 12 16 16 16 Final Carried 16 | 2 8 16 10 11 7 5 3 3 9 8 12 10 14 13 Class Distribution -------------------- 55% | Hacker-Mutant 25% | Hacker-Sprinter 13% | Generator-Sprinter 5% | Generator-Mutant Dominant Class ---------------- Hacker-Mutant | -10/Materials Hacker-Mutant | -9/Materials Hacker-Mutant | -8/Materials Hacker-Sprinter | -7/Factory Hacker-Sprinter | -6/Factory Hacker-Sprinter | -5/Factory Hacker-Sprinter | -5/Upper Caves Hacker-Mutant | -5/Upper Caves Hacker-Sprinter | -5/Warlord Hacker-Sprinter | -4/Proximity Caves Generator-Sprinter | -4/Factory Generator-Mutant | -3/Research Generator-Sprinter | -2/Research Generator-Sprinter | -1/Access Resources | -11 -10 -9 -8 -7 -6 -5 -5 -5 -5 -4 -4 -3 -2 -1 ----------- Run | Scr Mat Mat Mat Fac Fac Fac Upp Upp War Pro Fac Res Res Acc Matter Collected 963 | 260 . 130 . 76 124 70 . . 80 . 50 60 45 68 Remotely . | . . . . . . . . . . . . . . . Salvage Created 985 | . . 985 . . . . . . . . . . . . Parts 64 | . . 64 . . . . . . . . . . . . Haulers Intercepted 1 | . . 1 . . . . . . . . . . . . Recyclers Shooed . | . . . . . . . . . . . . . . . Parts Field Recycled . | . . . . . . . . . . . . . . . Retrieved Matter . | . . . . . . . . . . . . . . . Parts Self-Destructed . | . . . . . . . . . . . . . . . Prevented . | . . . . . . . . . . . . . . . Kills | -11 -10 -9 -8 -7 -6 -5 -5 -5 -5 -4 -4 -3 -2 -1 ------- Run | Scr Mat Mat Mat Fac Fac Fac Upp Upp War Pro Fac Res Res Acc Combat Hostiles Destroyed 23 | . . 22 . . . . . . . . . 1 . . Guns 18 | . . 17 . . . . . . . . . 1 . . AOE 5 | . . 5 . . . . . . . . . . . . Classes Destroyed 5 | . . 5 . . . . . . . . . . . . Builder 3 | . . 3 . . . . . . . . . . . . Hauler 1 | . . 1 . . . . . . . . . . . . Swarmer 5 | . . 5 . . . . . . . . . . . . Grunt 15 | . . 15 . . . . . . . . . . . . Sentry 3 | . . 2 . . . . . . . . . 1 . . Best Kill Streak 7 | . . 7 . . . . . . . . . 1 . . Combat Bots Only 6 | . . 6 . . . . . . . . . 1 . . Max Kills in Single Turn 3 | . . 3 . . . . . . . . . 1 . . Gunslinging . | . . . . . . . . . . . . . . . Exploded 2 | . . 2 . . . . . . . . . . . . Melee . | . . . . . . . . . . . . . . . Uniques/NPCs Destroyed . | . . . . . . . . . . . . . . . Combat | -11 -10 -9 -8 -7 -6 -5 -5 -5 -5 -4 -4 -3 -2 -1 -------- Run | Scr Mat Mat Mat Fac Fac Fac Upp Upp War Pro Fac Res Res Acc Damage Taken 2576 | . . 552 115 150 187 36 184 49 . 115 16 283 388 501 Core 312 | . . 58 19 19 31 . 23 . . 12 . 19 58 73 Absorbed by Shields . | . . . . . . . . . . . . . . . Core Remaining (%) 96 | 100 100 85 96 97 96 . . . . 96 100 98 96 95 Volleys Fired 62 | . . 41 . . 6 . . . . . . 13 . 2 Largest 2 | . . 2 . . 1 . . . . . . 1 . 2 Hottest 135 | . . 90 . . 45 . . . . . . 45 . 135 Shots Fired 85 | . . 63 . . 6 . . . . . . 13 . 3 Gun 83 | . . 63 . . 6 . . . . . . 13 . 1 Cannon 2 | . . . . . . . . . . . . . . 2 Launcher . | . . . . . . . . . . . . . . . Special . | . . . . . . . . . . . . . . . Kinetic . | . . . . . . . . . . . . . . . Thermal 2 | . . . . . . . . . . . . . . 2 Explosive . | . . . . . . . . . . . . . . . Electromagnetic 69 | . . 63 . . 6 . . . . . . . . . Entropic 14 | . . . . . . . . . . . . 13 . 1 Robot Hit Streak 31 | . . 29 . . 18 . . . . . . 31 . . Robot Miss Streak 4 | . . 4 . . . . . . . . . . . . Penetration Max . | . . . . . . . . . . . . . . . Secondary Targets 1 | . . 1 . . . . . . . . . . . . Max Gunslinging Chain 1 | . . 1 . . . . . . . . . . . . Shots Hit Robots 75 | . . 56 . . 6 . . . . . . 13 . . Core Hits 46 | . . 39 . . 4 . . . . . . 3 . . Critical Hits 1 | . . . . . . . . . . . . 1 . . Critical Kills . | . . . . . . . . . . . . . . . Critical Parts Destroyed . | . . . . . . . . . . . . . . . Melee Attacks 1 | . . . . 1 . . . . . . . . . . Impact 1 | . . . . 1 . . . . . . . . . . Slashing . | . . . . . . . . . . . . . . . Piercing . | . . . . . . . . . . . . . . . Sneak Attacks . | . . . . . . . . . . . . . . . Combat Hostiles . | . . . . . . . . . . . . . . . Follow-up Attacks . | . . . . . . . . . . . . . . . Damage Inflicted 1877 | . . 1202 . . 139 . . . . . . 536 . . Guns 1554 | . . 879 . . 139 . . . . . . 536 . . Cannons . | . . . . . . . . . . . . . . . Explosions 323 | . . 323 . . . . . . . . . . . . Melee . | . . . . . . . . . . . . . . . Ramming . | . . . . . . . . . . . . . . . Kinetic . | . . . . . . . . . . . . . . . Thermal 323 | . . 323 . . . . . . . . . . . . Explosive . | . . . . . . . . . . . . . . . Electromagnetic 1018 | . . 879 . . 139 . . . . . . . . . Impact . | . . . . . . . . . . . . . . . Slashing . | . . . . . . . . . . . . . . . Piercing . | . . . . . . . . . . . . . . . Entropic 536 | . . . . . . . . . . . . 536 . . Highest Corruption 1 | . . . . . . . . . . 1 . . . . Average Corruption 1 | . . . . . . . . . . 1 . . . . Corruption Purged . | . . . . . . . . . . . . . . . Overload Shots . | . . . . . . . . . . . . . . . Overflow Damage . | . . . . . . . . . . . . . . . Projectiles . | . . . . . . . . . . . . . . . Explosions . | . . . . . . . . . . . . . . . Melee . | . . . . . . . . . . . . . . . Knockbacks . | . . . . . . . . . . . . . . . Impact . | . . . . . . . . . . . . . . . Kinetic . | . . . . . . . . . . . . . . . Secondary . | . . . . . . . . . . . . . . . Self-Inflicted Damage 29 | . . 29 . . . . . . . . . . . . Shots 2 | . . 2 . . . . . . . . . . . . Rammed . | . . . . . . . . . . . . . . . Targets Rammed . | . . . . . . . . . . . . . . . Kicked . | . . . . . . . . . . . . . . . Crushed . | . . . . . . . . . . . . . . . Highest Temperature 240 | . . 198 240 143 91 178 190 198 193 58 . 121 114 . Average Temperature 77 | . . 67 83 47 44 107 120 98 101 37 . 43 56 . Received Heat Transfer 936 | . . 423 72 108 72 9 30 39 . 21 . 81 54 27 Effects 1 | . . . 1 . . . . . . . . . . . Energy Bleed 1 | . . . 1 . . . . . . . . . . . Siege Activations . | . . . . . . . . . . . . . . . Robots Corrupted . | . . . . . . . . . . . . . . . Combat Hostiles . | . . . . . . . . . . . . . . . Parts Fried 3 | . . 3 . . . . . . . . . . . . Impact Corruptions . | . . . . . . . . . . . . . . . Robots Melted . | . . . . . . . . . . . . . . . Combat Hostiles . | . . . . . . . . . . . . . . . Parts Melted . | . . . . . . . . . . . . . . . Heat Transferred 450 | . . 450 . . . . . . . . . . . . Parts Sabotaged . | . . . . . . . . . . . . . . . Parts Stolen . | . . . . . . . . . . . . . . . Parts Stripped . | . . . . . . . . . . . . . . . Power Chain Reactions 5 | . . 5 . . . . . . . . . . . . Missiles Intercepted . | . . . . . . . . . . . . . . . Alert | -11 -10 -9 -8 -7 -6 -5 -5 -5 -5 -4 -4 -3 -2 -1 ------- Run | Scr Mat Mat Mat Fac Fac Fac Upp Upp War Pro Fac Res Res Acc Peak Influence 533 | . 22 533 175 170 57 46 . . . . 48 50 180 117 Initial 105 | . . 6 105 57 57 16 . . . . 19 18 20 88 Average 123 | . 13 276 119 98 52 26 . . . . 31 28 46 98 Maximum Alert Level 2 | . . 2 . . . . . . . . . . . . Low Security (%) 75 | 100 100 24 100 100 100 100 . . . . 100 100 100 100 Level 1 14 | . . 43 . . . . . . . . . . . . Level 2 10 | . . 31 . . . . . . . . . . . . Level 3 . | . . . . . . . . . . . . . . . Level 4 . | . . . . . . . . . . . . . . . Level 5 . | . . . . . . . . . . . . . . . High Security . | . . . . . . . . . . . . . . . Max Security . | . . . . . . . . . . . . . . . Squads Dispatched 16 | . . 3 6 2 2 1 . . . . 1 1 . . Investigation 4 | . . . 1 1 . . . . . . 1 1 . . Extermination . | . . . . . . . . . . . . . . . Reinforcement 11 | . . 3 5 1 1 1 . . . . . . . . Assault . | . . . . . . . . . . . . . . . Garrison 1 | . . . . . 1 . . . . . . . . . Intercept . | . . . . . . . . . . . . . . . Construction Impeded . | . . . . . . . . . . . . . . . Haulers Reinforced 1 | . . . . . 1 . . . . . . . . . Stealth | -11 -10 -9 -8 -7 -6 -5 -5 -5 -5 -4 -4 -3 -2 -1 --------- Run | Scr Mat Mat Mat Fac Fac Fac Upp Upp War Pro Fac Res Res Acc Distress Signals 9 | . . 4 . . . . . . . . . . 5 . Communications Jammed . | . . . . . . . . . . . . . . . Distress Signals . | . . . . . . . . . . . . . . . Times Spotted 140 | . 2 31 14 10 6 5 9 5 13 6 2 4 23 10 Peak Tracking Total 12 | . 3 7 9 8 6 5 9 3 10 4 2 3 12 9 Tactical Retreats 11 | . . 2 1 1 1 . 1 1 . 2 . . 2 . Traps | -11 -10 -9 -8 -7 -6 -5 -5 -5 -5 -4 -4 -3 -2 -1 ------- Run | Scr Mat Mat Mat Fac Fac Fac Upp Upp War Pro Fac Res Res Acc Traps Triggered 1 | . . . . . . . . . . . 1 . . . Indirectly . | . . . . . . . . . . . . . . . Trap Hack Attempts . | . . . . . . . . . . . . . . . Triggered . | . . . . . . . . . . . . . . . Disarmed . | . . . . . . . . . . . . . . . Reprogrammed . | . . . . . . . . . . . . . . . Reused . | . . . . . . . . . . . . . . . Traps Extracted . | . . . . . . . . . . . . . . . Installed . | . . . . . . . . . . . . . . . Triggered 10 | . . . . . . . . . 10 . . . . . Machines | -11 -10 -9 -8 -7 -6 -5 -5 -5 -5 -4 -4 -3 -2 -1 ---------- Run | Scr Mat Mat Mat Fac Fac Fac Upp Upp War Pro Fac Res Res Acc Machines Disabled 1 | . . . . . . . . . . . . . . 1 Max in Single Turn 1 | . . . . . . . . . . . . . . 1 Energy Cycler 1 | . . . . . . . . . . . . . . 1 Machines Sabotaged . | . . . . . . . . . . . . . . . Garrisons Compromised . | . . . . . . . . . . . . . . . Overloaded Fab Kills . | . . . . . . . . . . . . . . . Fab Network Shutdowns . | . . . . . . . . . . . . . . . Hacking | -11 -10 -9 -8 -7 -6 -5 -5 -5 -5 -4 -4 -3 -2 -1 --------- Run | Scr Mat Mat Mat Fac Fac Fac Upp Upp War Pro Fac Res Res Acc Machines Accessed 12 | . 1 . 1 1 . . . . 5 . 1 1 1 1 Terminals 7 | . 1 . 1 1 . . . . . . 1 1 1 1 Fabricators . | . . . . . . . . . . . . . . . Repair Stations . | . . . . . . . . . . . . . . . Recycling Units . | . . . . . . . . . . . . . . . Scanalyzers . | . . . . . . . . . . . . . . . Garrison Access . | . . . . . . . . . . . . . . . Total Hacks 27 | . 1 . 2 4 . . . . 11 . 4 2 1 2 Successful 20 | . 1 . . 1 . . . . 11 . 3 1 1 2 Failed 7 | . . . 2 3 . . . . . . 1 1 . . Catastrophic 2 | . . . 1 . . . . . . . . 1 . . Database Lockouts . | . . . . . . . . . . . . . . . Manual 11 | . 1 . 2 4 . . . . 1 . 1 2 . . Terminals 16 | . 1 . 2 4 . . . . . . 4 2 1 2 Fabricators . | . . . . . . . . . . . . . . . Repair Stations . | . . . . . . . . . . . . . . . Recycling Units . | . . . . . . . . . . . . . . . Scanalyzers . | . . . . . . . . . . . . . . . Garrison Access . | . . . . . . . . . . . . . . . Terminal Hacks 20 | . 1 . . 1 . . . . 11 . 3 1 1 2 Record 7 | . . . . . . . . . 4 . 2 . . 1 Prototype ID Bank 5 | . . . . . . . . . 5 . . . . . Open Door 2 | . . . . . . . . . 2 . . . . . Level Access Points 4 | . 1 . . 1 . . . . . . 1 1 . . Alert Level 2 | . . . . . . . . . . . . . 1 1 Fabricator Hacks . | . . . . . . . . . . . . . . . Repair Station Hacks . | . . . . . . . . . . . . . . . Recycling Unit Hacks . | . . . . . . . . . . . . . . . Scanalyzer . | . . . . . . . . . . . . . . . Garrison Access Hacks . | . . . . . . . . . . . . . . . Unauthorized Hacks . | . . . . . . . . . . . . . . . Terminals . | . . . . . . . . . . . . . . . Fabricators . | . . . . . . . . . . . . . . . Repair Stations . | . . . . . . . . . . . . . . . Recycling Units . | . . . . . . . . . . . . . . . Scanalyzers . | . . . . . . . . . . . . . . . Garrison Access . | . . . . . . . . . . . . . . . Data Cores Recovered . | . . . . . . . . . . . . . . . Used . | . . . . . . . . . . . . . . . Hacking Detections 7 | . 1 . 1 1 . . . . . . 1 1 1 1 Full Trace Events 3 | . . . 1 1 . . . . . . . 1 . . Feedback Events . | . . . . . . . . . . . . . . . Feedback Blocked . | . . . . . . . . . . . . . . . Robot Schematics Acquired . | . . . . . . . . . . . . . . . Robots Built . | . . . . . . . . . . . . . . . Matter . | . . . . . . . . . . . . . . . Time . | . . . . . . . . . . . . . . . Total Robot Build Rating . | . . . . . . . . . . . . . . . Part Schematics Acquired . | . . . . . . . . . . . . . . . Parts Built . | . . . . . . . . . . . . . . . Matter . | . . . . . . . . . . . . . . . Time . | . . . . . . . . . . . . . . . Total Part Build Rating . | . . . . . . . . . . . . . . . Parts Repaired . | . . . . . . . . . . . . . . . Time . | . . . . . . . . . . . . . . . Parts Recycled . | . . . . . . . . . . . . . . . Recycled Matter . | . . . . . . . . . . . . . . . Retrieved Matter . | . . . . . . . . . . . . . . . Retrieved Components . | . . . . . . . . . . . . . . . Parts Scanalyzed . | . . . . . . . . . . . . . . . Part Schematics Acquired . | . . . . . . . . . . . . . . . Parts Damaged . | . . . . . . . . . . . . . . . Bothacking | -11 -10 -9 -8 -7 -6 -5 -5 -5 -5 -4 -4 -3 -2 -1 ------------ Run | Scr Mat Mat Mat Fac Fac Fac Upp Upp War Pro Fac Res Res Acc Used RIF Installer . | . . . . . . . . . . . . . . . Robots Hacked . | . . . . . . . . . . . . . . . Non-combat . | . . . . . . . . . . . . . . . Combat . | . . . . . . . . . . . . . . . Robot Hacks Applied . | . . . . . . . . . . . . . . . Relay Couplers Released . | . . . . . . . . . . . . . . . Robots Rewired . | . . . . . . . . . . . . . . . Allies Hacked . | . . . . . . . . . . . . . . . Hacks Repelled . | . . . . . . . . . . . . . . . Allies | -11 -10 -9 -8 -7 -6 -5 -5 -5 -5 -4 -4 -3 -2 -1 -------- Run | Scr Mat Mat Mat Fac Fac Fac Upp Upp War Pro Fac Res Res Acc Total Allies . | . . . . . . . . . . . . . . . Largest Group . | . . . . . . . . . . . . . . . Highest-Rated Group . | . . . . . . . . . . . . . . . Highest-Rated Ally . | . . . . . . . . . . . . . . . Total Orders . | . . . . . . . . . . . . . . . Ally Attacks . | . . . . . . . . . . . . . . . Total Damage . | . . . . . . . . . . . . . . . Kills . | . . . . . . . . . . . . . . . Allies Corrupted . | . . . . . . . . . . . . . . . Allies Melted . | . . . . . . . . . . . . . . . Intel | -11 -10 -9 -8 -7 -6 -5 -5 -5 -5 -4 -4 -3 -2 -1 ------- Run | Scr Mat Mat Mat Fac Fac Fac Upp Upp War Pro Fac Res Res Acc Robot Analysis Total . | . . . . . . . . . . . . . . . Derelict Logs Recovered 3 | . . . . . . . . 1 . 2 . . . . Drone Launches . | . . . . . . . . . . . . . . . Drone Recoveries . | . . . . . . . . . . . . . . . Exploration | -11 -10 -9 -8 -7 -6 -5 -5 -5 -5 -4 -4 -3 -2 -1 ------------- Run | Scr Mat Mat Mat Fac Fac Fac Upp Upp War Pro Fac Res Res Acc Turns Passed 2199 | 75 210 533 86 90 72 18 40 79 373 94 103 99 254 73 Spaces Moved 4293 | 45 159 249 188 231 142 77 154 254 950 266 316 251 772 239 Core 26 | 26 . . . . . . . . . . . . . . Treads . | . . . . . . . . . . . . . . . Legs 427 | 19 159 249 . . . . . . . . . . . . Wheels . | . . . . . . . . . . . . . . . Hover . | . . . . . . . . . . . . . . . Flight 3840 | . . . 188 231 142 77 154 254 950 266 316 251 772 239 Fastest Speed 19 | 50 120 120 25 22 19 19 19 19 19 19 22 19 22 19 Average Speed 34 | 137 124 153 26 22 20 19 19 19 19 22 23 22 24 22 Slowest Speed 250 | 250 150 180 108 25 22 19 19 19 19 25 105 25 108 25 Overloaded Moves . | . . . . . . . . . . . . . . . Propulsion Burnouts . | . . . . . . . . . . . . . . . Robots Hopped 38 | . . . 5 7 . 2 . . . . 5 2 16 1 Cave-ins Triggered . | . . . . . . . . . . . . . . . Exploration Rate (%) 27 | 4 37 35 27 9 6 4 41 44 94 55 14 8 33 8 Regions Visited 14 Branch Regions 4 Pre-discovered Areas 1 | . . . . . . . . . . 1 . . . . Known Exits Taken 14 | 1 1 1 1 1 1 1 1 1 1 1 1 1 1 . Unknown Exits Taken . | . . . . . . . . . . . . . . . Scrap Searched 2 | . . . . . . . 1 . . 1 . . . . Spaces Dug 1 | . . . . 1 . . . . . . . . . . Terrain Destroyed 25 | . . 13 . 1 . . . . . . . 11 . . Melee 1 | . . . . 1 . . . . . . . . . . Projectile 11 | . . . . . . . . . . . . 11 . . AOE 13 | . . 13 . . . . . . . . . . . . Terrain Rammed . | . . . . . . . . . . . . . . . Walls Destroyed . | . . . . . . . . . . . . . . . Machines Disabled . | . . . . . . . . . . . . . . . Actions | -11 -10 -9 -8 -7 -6 -5 -5 -5 -5 -4 -4 -3 -2 -1 --------- Run | Scr Mat Mat Mat Fac Fac Fac Upp Upp War Pro Fac Res Res Acc Total 4887 | 58 172 340 220 259 179 78 163 283 1142 299 338 279 822 255 Wait 363 | . . 16 22 18 15 . 8 30 176 32 7 . 39 . Move 4208 | 44 158 248 178 218 141 72 153 253 949 265 306 246 741 236 Hop 32 | . . . 4 5 . 2 . . . . 4 2 14 1 Pick Up 80 | 8 8 16 1 6 5 1 . . 5 . 7 4 13 6 Fast Attach 11 | . 2 2 . 2 . . . . . . 4 . . 1 Attach 65 | 6 1 4 7 5 8 2 2 . 3 1 4 7 10 5 Detach 8 | . . . 1 . . . . . 4 . 1 2 . . Swap 20 | . . 5 2 2 1 . . . 4 1 2 2 1 . Drop 37 | . 3 8 5 2 3 1 . . 1 . 3 3 4 4 Fire 62 | . . 41 . . 6 . . . . . . 13 . 2 Melee 1 | . . . . 1 . . . . . . . . . . Ram . | . . . . . . . . . . . . . . . Kick . | . . . . . . . . . . . . . . . Crush . | . . . . . . . . . . . . . . . Escape Stasis . | . . . . . . . . . . . . . . . Rewire . | . . . . . . . . . . . . . . . Trap . | . . . . . . . . . . . . . . . Miscellaneous . | . . . . . . . . . . . . . . . Route ------- -11/Scrapyard -10/Materials (discovered 4 exits: *Mat x3 / *Min) -9/Materials (discovered 2 exits: *Mat / *Min) -8/Materials -7/Factory (discovered 4 exits: *Fac x4) -6/Factory -5/Factory -5/Upper Caves -5/Upper Caves -5/Warlord -4/Proximity Caves -4/Factory (discovered 5 exits: *Res x4 / Upp) -3/Research (discovered 3 exits: *Res x3) -2/Research -1/Access To Epsilon Eridani History --------- Turn | Location | Event 26 | -11/Scrapyard | Identified exit to Materials 26 | -11/Scrapyard | Discovered exit to Materials (range 16) 76 | -11/Scrapyard | Entered Materials 76 | -10/Materials | Evolved 1 slot: Power x1 96 | -10/Materials | Identified exit to Materials 208 | -10/Materials | Identified exit to Mines 208 | -10/Materials | Discovered exit to Mines (range 8) 286 | -10/Materials | Entered another Materials area 286 | -9/Materials | Evolved 2 slots: Propulsion x2 331 | -9/Materials | Build established: Hacker-Mutant 586 | -9/Materials | Identified exit to Mines 586 | -9/Materials | Discovered exit to Mines (range 14) 792 | -9/Materials | Identified exit to Materials 792 | -9/Materials | Discovered exit to Materials (range 15) 819 | -9/Materials | Entered another Materials area 819 | -8/Materials | Evolved 2 slots: Propulsion x2 902 | -8/Materials | Identified exit to Factory 902 | -8/Materials | Discovered exit to Factory (range 16) 905 | -8/Materials | Entered Factory 905 | -7/Factory | Evolved 2 slots: Propulsion x1, Utility x1 917 | -7/Factory | Identified exit to Factory 995 | -7/Factory | Entered another Factory area 995 | -6/Factory | Evolved 2 slots: Propulsion x1, Utility x1 1041 | -6/Factory | Garrison activated, responded to threat 1065 | -6/Factory | Identified exit to Factory 1065 | -6/Factory | Discovered exit to Factory (range 8) 1067 | -6/Factory | Entered another Factory area 1067 | -5/Factory | Evolved 2 slots: Power x1, Utility x1 1083 | -5/Factory | Identified exit to Upper Caves 1083 | -5/Factory | Discovered exit to Upper Caves (range 7) 1085 | -5/Factory | Entered Upper Caves 1094 | -5/Upper Caves | Lost 4 parts (3n1w) 1122 | -5/Upper Caves | Identified exit to Upper Caves 1122 | -5/Upper Caves | Discovered exit to Upper Caves (range 16) 1125 | -5/Upper Caves | Entered another Upper Caves area 1161 | -5/Upper Caves | Lost 3 parts (2p1n) 1202 | -5/Upper Caves | Identified exit to Warlord 1202 | -5/Upper Caves | Discovered exit to Warlord (range 7) 1204 | -5/Upper Caves | Entered Warlord 1210 | -5/Warlord | Identified exit to Proximity Caves 1210 | -5/Warlord | Discovered exit to Proximity Caves (range 9) 1267 | -5/Warlord | Opened side exit 1380 | -5/Warlord | Visited the Vortex Lab 1380 | -5/Warlord | Found Prototype Energy Gun 1381 | -5/Warlord | Identified Vortex Rail 1382 | -5/Warlord | Found Vortex Rail 1384 | -5/Warlord | Found Prototype Launcher 1386 | -5/Warlord | Identified Vortex Catalyst Activator 1402 | -5/Warlord | Warlord's base attacked by MAIN.C 1460 | -5/Warlord | Found Prototype Device 1461 | -5/Warlord | Identified Minesniffer Drone Bay 1467 | -5/Warlord | Met Warlord 1577 | -5/Warlord | Entered Proximity Caves 1583 | -4/Proximity Caves | Learned location of Quarantine (-2) 1649 | -4/Proximity Caves | Attracted the attention of an 0b10 checkpoint 1669 | -4/Proximity Caves | Identified exit to Factory 1669 | -4/Proximity Caves | Discovered exit to Factory (range 8) 1670 | -4/Proximity Caves | Learned Research terminal intel 1671 | -4/Proximity Caves | Entered Factory 1671 | -4/Factory | Evolved 2 slots: Utility x1, Weapon x1 1672 | -4/Factory | Identified exit to Upper Caves 1694 | -4/Factory | Identified exit to Research 1774 | -4/Factory | Entered Research 1774 | -3/Research | Evolved 2 slots: Propulsion x1, Utility x1 1775 | -3/Research | Loaded intel: 18 terminal locations 1820 | -3/Research | Identified exit to Research 1838 | -3/Research | Lost 3 parts (2n1u) 1873 | -3/Research | Entered another Research area 1873 | -2/Research | Warlord forces began assault on 0b10 1873 | -2/Research | Evolved 2 slots: Propulsion x1, Utility x1 1976 | -2/Research | Met up with Warlord 1983 | -2/Research | Research machine network offline 2047 | -2/Research | Lost 4 parts (4n) 2115 | -2/Research | Identified exit to Access 2115 | -2/Research | Discovered exit to Access (range 15) 2127 | -2/Research | Entered Access 2127 | -1/Access | Evolved 2 slots: Utility x1, Weapon x1 2146 | -1/Access | Spotted B-99 Colossus 2177 | -1/Access | Spotted B-99 Colossus 2178 | -1/Access | Spotted B-99 Colossus 2194 | -1/Access | Energy Cycler disabled 2198 | -1/Access | Identified exit to Surface 2198 | -1/Access | Discovered exit to Surface (range 6) 2200 | *** | Escaped! Last Messages --------------- 02153_ B-99 Colossus activates siege mode. 02158_ Knocked back. 02158_ Penetrated by Slug. 02158_ Slug penetrates Earth. 02162_ Penetrated by Slug. 02162_ Slug penetrates Door. 02166_ Acquired Adv. Weight Redist. System. 02172_ Field Propulsion Drive destroyed. 02178_ Penetrated by Slug. 02178_ Slug penetrates Wall. 02178_ Penetrated by Slug. 02178_ Slug penetrates Wall. 02180_ Sealed Heavy Doors breached. 02182_ U-05 Engineer destroyed. 02182_ Penetrated by Slug. 02183_ Slug penetrates Wall. 02194_ ALERT: Power surge detected, dispatching additional patrols. 02194_ Energy Cycler explodes. 02198_ The Access Shell folds into the floor. 02198_ EXIT=FOUND: SURFACE Map ----- +----------------------------------------------------+ | ??????????????????????####???????????????????????? | | ???????????????????### ###???????????????###+##? | | ??????????????####+"""""""""#??????????????# ? | | ??????????????# "#??????????????# #? | | ??????????????# ""??????????????# #? | | ??????????????# "#??????????????+ #? | | ?????????###### "#??????????????# #? | | ####### # "#??????????????# #? | | + "#??????????????# #? | | + "#######+#####+## #? | | ??????#### ! # " #? | | ?????????## ## ####### #? | | ??????????# ## #??#####+######## +? | | ??????????# ## #??# #??# #? | | ??????????# ## #??# #??# #? | | ??????????# ###############??# #??# #? | | ??????????# #????????????????# #??# #? | | ??????????# #????????????????###########??# ## | | ??????????# #?????###?????????????????????# # | | ??????????# ####### ##########??######????# # | | ??????????# """T""" "??" ???# # | | ??????????# """ """ "??" ??# # | | ??????????# "??" ### # | | ??????????# "?"" # | | ??????????# "" "?" ! # | | ??????????# @" "??" !%= " | | ??????????# "??" = # | | ??????????# "??" "## # | | ??????????# "??" "?# # | | ??????????# "??" #?# ## | | ??????????# g####### ##########??########??# | | ??????????# #?????###?????????????????????# | | ??????????# ??????????????????????????????# | | ??????????# ??????????????????????????????# | | ??????????# ??????????????????????????????####### | | ??????????/ ????????????????????????????????????? | | ??????????# ????????????????????????????????????? | | ??????????# ???????????????????????????????????? | | ????????????????????????????????????????????????? | | ???????????????????????????????????????????????? | | ???????????????????????????????????????????????? | | ???????????????????????????????????????????????# | | ???????????????????????????????????????????????# | | ???????????????????????????????????????????????# | | ???????????????????????????????????????????????### | | ?????????????????????????????????????????????????? | | ?????????????????????????????????????????????????? | | ?????????????????????????????????????????????????? | | ?????????????????????????????????????????????????# | | ??????????????????????????????????????????????# | +----------------------------------------------------+ Best States ------------- Heat Dissipation 158 Coolant Potential 65 Energy Generation 74 Energy Capacity 1260 Matter Stores 300 Matter Capacity 300 Sight Range 16 Terrain Scan Density 10 Cloak Strength 3 Power Amplification 20 Additional Mass Support 18 Armor Coverage 150 Resistance: KI 35 Resistance: TH 35 Resistance: EX 35 Resistance: EM 35 Resistance: I 35 Resistance: S 35 Resistance: P 35 Evasion (%) 66 Offensive Hacking 20 Item Schematics ----------------- None Robot Schematics ------------------ None Fabricated ------------ Nothing Alien Tech Used ----------------- None Achievements -------------- All-out Warlord Origins Challenges ------------ None Game ------ Seed SmartbombChargeBooster Manual? 0 Play Time 01:27:45 Cumulative 40.2 hours Start 2022.01.16 @ 07:38:32 End 2022.01.16 @ 11:20:12 Sessions 3 Manual Loads 0 Difficulty Explorer Special Mode None Game No. 41 Rogue 1 Adventurer 0 Explorer 40 Win Type 0 Total 3 Types 3/0/0/0/0/0/0/0/0 Lore% 13 Gallery% 41 Achievement% 31 Wizard Run 0 Options --------- ASCII 0 Keyboard 0 Movement Numpad Keybinds 0 Fullscreen 1 Font 12/Smallcaps Map View 83x54 Tactical HUD 1 Map Filters NONE Filters NONE Steam 1 RUN: a37e4a65-5565-461a-8b03-6f82f79d55bf